bitfinex/quotes_SOLUSD_20240729
["timestamp","ask_amount","ask_price","bid_price","bid_amount"]
[1722211201311,45.0,185.39,185.31,12.75]
[1722211201613,12.75,185.37,185.31,12.75]
[1722211203230,45.0,185.39,185.29,23.19923857]
[1722211203433,28.32545403,185.38,185.32,12.75]
[1722211203614,0.17,185.41,185.29,23.19923857]
[1722211203615,12.75,185.4,185.33,13.82901038]
[1722211203818,15.57470573,185.39,185.33,13.82901038]
[1722211204040,15.57470573,185.39,185.34,12.75]
[1722211204213,15.57470573,185.4,185.3,1.07893561]
[1722211204415,12.75,185.39,185.33,12.75]
[1722211204633,15.57470573,185.38,185.33,12.75]
[1722211205828,15.57470573,185.38,185.32,12.75]
[1722211206033,15.57470573,185.38,185.34,12.75]
[1722211206211,15.57470573,185.42,185.35,12.75]
[1722211206415,28.32457309,185.41,185.35,12.75]
[1722211206624,15.57457309,185.4,185.37,12.75]
[1722211206912,12.75,185.44,185.38,12.75]
[1722211207108,15.57154697,185.43,185.38,12.75]
[1722211207520,12.75,185.44,185.38,12.75]
[1722211207718,12.75,185.44,185.34,23.0201]
[1722211207719,15.57154697,185.43,185.37,12.75]
[1722211208638,15.57102201,185.42,185.37,12.75]
[1722211208827,12.75,185.44,185.37,12.75]
[1722211209031,12.75,185.44,185.38,12.75]
[1722211209520,0.7800266,185.46,185.39,12.75]
[1722211209721,0.7800266,185.46,185.4,12.75]
[1722211210120,16.35065672,185.46,185.4,12.75]
[1722211210515,13.5300266,185.46,185.4,12.75]
[1722211210715,13.5300266,185.46,185.34,24.09875748]
[1722211210943,13.5300266,185.46,185.39,12.75]
[1722211211246,12.75,185.45,185.35,47.66660165]
[1722211211565,12.75,185.45,185.38,12.75]
[1722211211721,12.75,185.45,185.39,20.0]
[1722211213043,12.75,185.44,185.37,12.75]
[1722211213245,12.75,185.41,185.36,1.24797853]
[1722211214624,12.75,185.41,185.36,21.24797853]
[1722211214945,0.7800266,185.46,185.36,21.24797853]
[1722211215246,12.75,185.42,185.36,33.99797853]
[1722211216026,12.75,185.42,185.36,20.0]
[1722211216232,12.75,185.41,185.36,20.0]
[1722211216453,12.75,185.41,185.35,20.0]
[1722211216633,12.75,185.42,185.35,32.75]
[1722211216841,12.75,185.42,185.36,12.75]
[1722211217443,12.75,185.43,185.36,12.75]
[1722211218637,12.75,185.42,185.36,12.75]
[1722211219657,12.75,185.43,185.36,12.75]
[1722211221227,0.7800266,185.46,185.37,12.75]
[1722211221435,12.75,185.44,185.38,12.75]
[1722211221634,12.75,185.45,185.38,12.75]
[1722211222327,0.7800266,185.46,185.38,12.75]
[1722211222525,12.75,185.45,185.38,12.75]
[1722211223325,0.7800266,185.46,185.38,12.75]
[1722211223544,12.75,185.45,185.38,12.75]
[1722211227555,12.75,185.45,185.39,12.75]
[1722211227850,12.75,185.45,185.38,12.75]
[1722211229052,12.75,185.44,185.37,12.75]
[1722211229233,12.75,185.44,185.38,20.0]
[1722211229427,0.7800266,185.46,185.38,20.0]
[1722211229628,12.75,185.44,185.38,20.0]
[1722211230353,0.7800266,185.46,185.38,20.0]
[1722211231547,0.7800266,185.46,185.38,32.75]
[1722211231954,0.7800266,185.46,185.38,20.0]
[1722211232271,0.7800266,185.46,185.37,12.75]
[1722211236367,12.75,185.45,185.39,12.75]
[1722211236864,0.7800266,185.46,185.39,12.75]
[1722211237164,12.75,185.45,185.38,12.75]
[1722211243377,12.75,185.44,185.35,20.0]
[1722211243561,12.75,185.44,185.37,12.75]
[1722211245459,9.73164489,185.43,185.37,12.75]
[1722211245652,12.75,185.44,185.37,12.75]
[1722211245878,9.7315027,185.43,185.37,12.75]
[1722211246079,12.75,185.44,185.37,12.75]
[1722211246374,9.73164489,185.43,185.37,12.75]
[1722211246553,12.75,185.44,185.37,12.75]
[1722211246750,9.73164564,185.43,185.37,12.75]
[1722211247174,12.75,185.44,185.37,12.75]
[1722211247353,12.75,185.42,185.35,20.0]
[1722211247549,22.48156561,185.41,185.35,20.0]
[1722211247775,9.73266573,185.4,185.35,20.0]
[1722211247971,12.75,185.41,185.35,20.0]
[1722211248150,9.73266573,185.4,185.35,20.0]
[1722211248356,12.75,185.42,185.36,12.75]
[1722211248573,12.75,185.43,185.37,12.75]
[1722211248770,9.73169142,185.42,185.37,12.75]
[1722211249084,22.48262468,185.41,185.34,12.75]
[1722211249259,9.73262468,185.4,185.35,20.0]
[1722211249451,22.48262468,185.4,185.35,20.0]
[1722211249775,26.035,185.45,185.35,20.0]
[1722211249776,12.75,185.43,185.35,20.0]
[1722211249959,9.73273297,185.42,185.36,12.75]
[1722211250168,12.75,185.43,185.36,12.75]
[1722211250564,9.732892,185.41,185.36,12.75]
[1722211250871,9.73289126,185.42,185.36,12.75]
[1722211251073,9.73289126,185.42,185.32,20.0]
[1722211251074,12.75,185.41,185.32,20.0]
[1722211251279,9.73289126,185.4,185.34,12.75]
[1722211251654,9.73289126,185.4,185.3,21.07893845]
[1722211251655,9.73289126,185.4,185.35,12.75]
[1722211252663,9.73290274,185.39,185.35,12.75]
[1722211252861,13.2836856,185.41,185.35,12.75]
[1722211253063,9.73289571,185.4,185.35,12.75]
[1722211253265,13.2836856,185.41,185.35,12.75]
[1722211253883,9.73289496,185.4,185.35,12.75]
[1722211254072,9.73289496,185.39,185.35,12.75]
[1722211254266,13.2836856,185.41,185.35,12.75]
[1722211254585,9.73290594,185.4,185.35,12.75]
[1722211254876,9.73290594,185.39,185.35,12.75]
[1722211255083,13.2836856,185.41,185.35,12.75]
[1722211255284,9.73289422,185.4,185.35,12.75]
[1722211255462,9.73289422,185.39,185.35,12.75]
[1722211255662,13.2836856,185.41,185.35,12.75]
[1722211255982,9.73289571,185.4,185.35,12.75]
[1722211256178,9.73289571,185.39,185.35,12.75]
[1722211256365,13.2836856,185.41,185.35,12.75]
[1722211256679,13.2836856,185.41,185.37,12.75]
[1722211256680,0.5336856,185.41,185.37,12.75]
[1722211256879,9.73289422,185.4,185.37,12.75]
[1722211257063,9.73289422,185.39,185.37,12.75]
[1722211257262,0.5336856,185.41,185.37,12.75]
[1722211257462,9.73288428,185.4,185.37,12.75]
[1722211257677,0.5336856,185.41,185.37,12.75]
[1722211257870,0.5336856,185.41,185.38,12.75]
[1722211257871,9.73287726,185.39,185.38,12.75]
[1722211258181,0.5336856,185.41,185.38,12.75]
[1722211265668,0.5336856,185.41,185.36,1.07865205]
[1722211265669,0.5336856,185.41,185.4,12.75]
[1722211267579,0.5336856,185.41,185.39,12.75]
[1722211272178,0.5336856,185.41,185.38,12.75]
[1722211283908,0.5336856,185.41,185.35,22.3037]
[1722211284116,12.75,185.4,185.36,20.0]
[1722211284600,12.75,185.4,185.33,12.75]
[1722211284799,0.5336856,185.41,185.29,2.12016656]
[1722211285114,12.75,185.36,185.3,12.75]
[1722211285399,0.17,185.4,185.3,12.75]
[1722211285597,0.17,185.4,185.28,14.05549215]
[1722211285598,12.75,185.38,185.28,14.05549215]
[1722211285808,9.73423167,185.37,185.31,12.75]
[1722211286095,12.75,185.39,185.33,12.75]
[1722211286409,9.73437523,185.38,185.35,12.75]
[1722211286695,13.2836856,185.41,185.35,12.75]
[1722211286888,9.73374265,185.4,185.35,12.75]
[1722211287093,9.73374265,185.39,185.34,12.75]
[1722211287396,13.2836856,185.41,185.34,12.75]
[1722211287971,9.73365592,185.4,185.34,12.75]
[1722211288182,9.73365592,185.39,185.34,12.75]
[1722211288399,13.2836856,185.41,185.34,12.75]
[1722211288600,9.73364626,185.4,185.34,12.75]
[1722211288792,9.73364626,185.39,185.34,12.75]
[1722211288996,13.2836856,185.41,185.34,12.75]
[1722211289196,22.48364626,185.4,185.34,12.75]
[1722211289413,9.73364626,185.39,185.34,12.75]
[1722211289701,13.2836856,185.41,185.34,12.75]
[1722211289887,9.7337799,185.4,185.34,12.75]
[1722211290085,9.7337799,185.39,185.34,12.75]
[1722211290303,13.2836856,185.41,185.34,12.75]
[1722211290497,9.7337799,185.4,185.34,12.75]
[1722211290904,13.2836856,185.41,185.34,12.75]
[1722211291086,9.73377915,185.39,185.34,12.75]
[1722211291296,13.2836856,185.41,185.34,12.75]
[1722211291909,9.73378767,185.4,185.34,12.75]
[1722211292208,9.73378767,185.39,185.34,12.75]
[1722211292381,13.2836856,185.41,185.34,12.75]
[1722211292579,9.73382583,185.4,185.34,12.75]
[1722211292881,9.73382583,185.39,185.34,12.75]
[1722211293102,12.75,185.4,185.34,12.75]
[1722211293287,9.7337799,185.39,185.34,12.75]
[1722211293489,12.75,185.4,185.34,12.75]
[1722211293689,9.73377915,185.39,185.34,12.75]
[1722211293992,12.75,185.4,185.34,12.75]
[1722211295117,12.75,185.38,185.28,8.42204603]
[1722211295407,12.75,185.38,185.31,12.75]
[1722211296703,12.75,185.37,185.3,12.75]
[1722211296914,12.75,185.32,185.28,1.24851738]
[1722211297083,12.75,185.31,185.28,1.24851738]
[1722211297283,12.75,185.3,185.28,1.24851738]
[1722211297587,12.75,185.3,185.23,12.75]
[1722211298097,12.75,185.29,185.23,12.75]
[1722211298295,12.75,185.29,185.21,22.7399]
[1722211298504,12.75,185.28,185.21,35.4899]
[1722211298890,15.6345,185.35,185.21,1.24898926]
[1722211299101,12.75,185.3,185.24,12.75]
[1722211299298,12.75,185.29,185.22,12.75]
[1722211299505,12.75,185.28,185.21,13.99898926]
[1722211301638,12.75,185.23,185.21,1.24898926]
[1722211301908,45.17,185.27,185.18,12.75]
[1722211302092,12.75,185.25,185.19,12.75]
[1722211303083,45.0,185.27,185.19,12.75]
[1722211303410,45.0,185.27,185.12,22.6738]
[1722211303411,12.75,185.24,185.12,22.6738]
[1722211303587,12.75,185.23,185.13,21.07966173]
[1722211303794,12.75,185.23,185.17,12.75]
[1722211304308,12.75,185.22,185.13,20.0]
[1722211304493,20.0,185.25,185.13,20.0]
[1722211304494,57.75,185.21,185.15,12.75]
[1722211304805,12.75,185.19,185.13,32.75]
[1722211305004,12.75,185.2,185.14,12.75]
[1722211305181,12.75,185.2,185.12,22.6738]
[1722211305393,12.75,185.2,185.13,12.75]
[1722211305590,12.75,185.2,185.14,12.75]
[1722211305794,12.75,185.21,185.14,12.75]
[1722211306634,12.75,185.21,185.12,22.6738]
[1722211306635,12.75,185.21,185.15,12.75]
[1722211306815,12.75,185.23,185.16,12.75]
[1722211306998,45.0,185.22,185.16,12.75]
[1722211307708,12.75,185.21,185.12,22.6738]
[1722211307916,12.75,185.21,185.15,12.75]
[1722211308100,45.0,185.22,185.12,22.6738]
[1722211308101,57.75,185.22,185.12,22.6738]
[1722211308297,57.75,185.22,185.16,12.75]
[1722211308912,12.75,185.24,185.17,12.75]
[1722211309519,12.75,185.24,185.18,12.75]
[1722211310027,12.75,185.22,185.13,20.0]
[1722211310207,12.75,185.22,185.16,12.75]
[1722211310412,12.75,185.23,185.16,12.75]
[1722211310713,12.75,185.24,185.17,12.75]
[1722211311507,12.75,185.25,185.14,1.07996914]
[1722211311818,57.75,185.24,185.14,1.07996914]
[1722211312128,12.75,185.23,185.17,12.75]
[1722211313411,12.75,185.22,185.16,12.75]
[1722211314125,15.248,185.28,185.18,12.75]
[1722211314425,12.75,185.25,185.19,12.75]
[1722211314618,12.75,185.24,185.13,71.0]
[1722211315234,12.75,185.23,185.13,71.0]
[1722211315403,12.75,185.23,185.17,12.75]
[1722211315721,12.75,185.23,185.13,20.0]
[1722211315928,12.75,185.22,185.16,12.75]
[1722211316125,12.75,185.21,185.15,12.75]
[1722211318035,12.75,185.2,185.14,12.75]
[1722211318328,12.75,185.2,185.15,20.0]
[1722211320421,12.75,185.2,185.14,12.75]
[1722211320829,12.75,185.2,185.15,20.0]
[1722211321009,12.75,185.21,185.15,20.0]
[1722211321207,12.75,185.21,185.13,20.0]
[1722211321413,12.75,185.21,185.15,12.75]
[1722211321924,12.75,185.21,185.14,12.75]
[1722211322130,12.75,185.21,185.15,20.0]
[1722211323545,20.0,185.26,185.15,20.0]
[1722211323716,45.34,185.25,185.15,33.83005526]
[1722211323915,12.75,185.22,185.15,32.75]
[1722211324435,12.75,185.21,185.15,32.75]
[1722211324613,12.75,185.22,185.15,32.75]
[1722211324808,12.75,185.22,185.16,12.75]
[1722211328733,12.75,185.22,185.15,32.75]
[1722211329842,12.75,185.22,185.16,12.75]
[1722211330528,45.34,185.25,185.18,12.75]
[1722211330733,12.75,185.24,185.18,12.75]
[1722211331039,12.75,185.23,185.16,12.75]
[1722211331245,0.17,185.25,185.16,12.75]
[1722211331433,12.75,185.23,185.16,12.75]
[1722211331742,12.75,185.22,185.16,12.75]
[1722211333226,12.75,185.22,185.15,32.75]
[1722211338719,12.75,185.22,185.16,12.75]
[1722211339931,0.17,185.25,185.16,12.75]
[1722211340237,0.17,185.25,185.15,20.0]
[1722211340238,12.92,185.25,185.18,12.75]
[1722211340424,45.0,185.24,185.18,12.75]
[1722211340636,57.75,185.24,185.17,12.75]
[1722211341139,12.75,185.23,185.17,12.75]
[1722211341320,57.75,185.24,185.17,12.75]
[1722211342831,12.75,185.24,185.17,12.75]
[1722211344142,12.75,185.23,185.16,12.75]
[1722211346628,9.74288535,185.22,185.16,12.75]
[1722211346834,12.75,185.23,185.16,12.75]
[1722211347029,9.74288609,185.22,185.16,12.75]
[1722211347335,12.75,185.23,185.16,12.75]
[1722211347742,9.7429359,185.22,185.16,12.75]
[1722211347940,9.7429359,185.21,185.16,12.75]
[1722211348248,12.75,185.23,185.15,20.0]
[1722211348548,9.74288609,185.22,185.16,12.75]
[1722211348721,9.74288609,185.21,185.16,12.75]
[1722211348925,12.75,185.23,185.16,12.75]
[1722211349123,9.74288684,185.22,185.16,12.75]
[1722211349342,12.75,185.23,185.16,12.75]
[1722211349343,9.74288684,185.21,185.16,12.75]
[1722211349522,12.75,185.23,185.16,12.75]
[1722211349722,9.74287913,185.22,185.16,12.75]
[1722211349926,9.74287913,185.21,185.16,12.75]
[1722211350134,9.74287913,185.2,185.16,12.75]
[1722211350332,12.75,185.23,185.16,12.75]
[1722211350651,9.74307016,185.22,185.16,12.75]
[1722211350949,12.75,185.23,185.16,12.75]
[1722211351454,9.74306792,185.22,185.16,12.75]
[1722211351664,19.48615271,185.22,185.16,12.75]
[1722211351867,9.74308479,185.21,185.16,12.75]
[1722211352032,9.74308479,185.21,185.15,12.75]
[1722211353552,9.74308479,185.21,185.16,13.83009302]
[1722211353745,9.74308479,185.21,185.17,12.75]
[1722211353943,9.74306792,185.22,185.18,12.75]
[1722211354149,9.74281857,185.2,185.16,1.08009302]
[1722211354349,9.74306792,185.22,185.13,71.0]
[1722211354350,9.74306792,185.22,185.15,0.17]
[1722211354537,9.74306792,185.22,185.21,12.75]
[1722211354937,9.74306792,185.22,185.15,1.24939401]
[1722211355136,9.74222568,185.21,185.16,12.75]
[1722211355652,9.74222568,185.21,185.15,13.99939401]
[1722211355856,22.49222568,185.21,185.16,20.0]
[1722211356158,9.74222568,185.2,185.16,20.0]
[1722211357362,9.74222568,185.2,185.15,13.99939401]
[1722211358666,9.74222568,185.2,185.15,1.24939401]
[1722211358849,9.74222568,185.2,185.15,13.99939401]
[1722211359842,9.74222568,185.2,185.15,12.75]
[1722211360466,12.75,185.21,185.15,12.75]
[1722211360849,9.74307077,185.2,185.15,12.75]
[1722211361175,9.74307791,185.2,185.15,12.75]
[1722211362366,9.74307791,185.2,185.13,20.0]
[1722211362664,9.74307791,185.2,185.14,12.75]
[1722211362850,9.74307791,185.2,185.15,20.0]
[1722211363763,9.74364555,185.19,185.15,20.0]
[1722211363954,9.74307791,185.2,185.15,20.0]
[1722211364157,22.49378063,185.19,185.12,22.6738]
[1722211364359,9.74378063,185.18,185.13,32.75]
[1722211365267,22.49378063,185.18,185.08,6.3644]
[1722211365457,12.75,185.18,185.11,12.75]
[1722211366645,12.75,185.18,185.12,20.0]
[1722211367567,9.7444044,185.17,185.12,20.0]
[1722211367770,12.75,185.18,185.12,20.0]
[1722211367970,9.74440515,185.17,185.12,20.0]
[1722211368279,12.75,185.18,185.12,20.0]
[1722211368571,9.74517078,185.17,185.12,20.0]
[1722211368747,9.74517078,185.16,185.12,20.0]
[1722211368947,12.75,185.18,185.12,20.0]
[1722211369148,9.74516306,185.17,185.12,20.0]
[1722211369367,12.75,185.18,185.12,20.0]
[1722211369575,9.74517429,185.17,185.12,20.0]
[1722211369784,12.75,185.18,185.12,20.0]
[1722211369976,9.74498317,185.17,185.12,32.75]
[1722211370272,12.75,185.19,185.13,12.75]
[1722211370845,9.74493409,185.18,185.13,12.75]
[1722211371161,12.75,185.19,185.13,12.75]
[1722211371360,9.74447122,185.18,185.13,12.75]
[1722211371544,12.75,185.19,185.13,12.75]
[1722211371746,9.74447048,185.18,185.13,12.75]
[1722211371948,15.2269,185.22,185.14,13.83022982]
[1722211372153,22.49423556,185.21,185.15,12.75]
[1722211372355,9.74423556,185.2,185.14,12.75]
[1722211372569,9.74423556,185.19,185.12,20.0]
[1722211372776,12.75,185.21,185.14,12.75]
[1722211373078,22.49414592,185.2,185.13,12.75]
[1722211373377,12.75,185.2,185.13,12.75]
[1722211373582,9.74439462,185.19,185.13,12.75]
[1722211373943,12.75,185.2,185.13,12.75]
[1722211374143,9.7443869,185.19,185.13,12.75]
[1722211374374,12.75,185.2,185.13,12.75]
[1722211374574,9.7444013,185.19,185.13,12.75]
[1722211374769,12.75,185.21,185.14,12.75]
[1722211374975,9.7441764,185.2,185.14,12.75]
[1722211375272,9.7441764,185.19,185.14,12.75]
[1722211375446,12.75,185.21,185.14,12.75]
[1722211375646,9.74416819,185.2,185.14,12.75]
[1722211375842,9.74416819,185.19,185.14,12.75]
[1722211376076,12.75,185.21,185.14,12.75]
[1722211376272,9.7441221,185.2,185.14,12.75]
[1722211376453,9.7441221,185.19,185.14,12.75]
[1722211376654,12.75,185.21,185.14,12.75]
[1722211377171,9.74412061,185.2,185.14,12.75]
[1722211377388,9.74412061,185.19,185.14,12.75]
[1722211377558,9.74412061,185.2,185.14,12.75]
[1722211377872,9.74412136,185.19,185.16,12.75]
[1722211378047,35.3637,185.27,185.16,12.75]
[1722211378048,12.75,185.23,185.16,12.75]
[1722211378449,4.3184,185.26,185.17,12.75]
[1722211378755,12.75,185.25,185.18,12.75]
[1722211379178,12.75,185.25,185.19,12.75]
[1722211379678,12.75,185.26,185.2,12.75]
[1722211380065,12.75,185.26,185.19,12.75]
[1722211381468,12.75,185.25,185.18,12.75]
[1722211382298,12.75,185.25,185.19,12.75]
[1722211382499,12.75,185.26,185.19,12.75]
[1722211383367,17.0682,185.26,185.19,12.75]
[1722211385601,12.75,185.26,185.19,12.75]
[1722211385995,15.7574,185.31,185.22,12.75]
[1722211386187,15.7574,185.31,185.24,12.75]
[1722211386188,28.5074,185.31,185.24,12.75]
[1722211386717,15.7574,185.31,185.25,12.75]
[1722211386889,20.4485,185.35,185.26,12.75]
[1722211387197,12.75,185.33,185.26,12.75]
[1722211387396,20.4485,185.35,185.26,12.75]
[1722211387699,16.1322,185.35,185.27,12.75]
[1722211387874,12.75,185.34,185.27,12.75]
[1722211390394,28.8822,185.35,185.25,21.07929266]
[1722211390593,6.0325,185.38,185.3,12.75]
[1722211390797,12.75,185.37,185.3,12.75]
[1722211391108,12.75,185.36,185.29,12.75]
[1722211391480,12.75,185.35,185.29,12.75]
[1722211392311,12.75,185.36,185.3,12.75]
[1722211392900,4.3154,185.38,185.3,12.75]
[1722211393083,12.75,185.36,185.3,12.75]
[1722211395116,12.75,185.35,185.25,21.24871957]
[1722211395293,12.75,185.35,185.28,12.75]
[1722211395691,45.0,185.37,185.28,12.75]
[1722211395987,4.3157,185.37,185.29,12.75]
[1722211396189,45.0,185.36,185.29,12.75]
[1722211396808,4.3157,185.37,185.29,12.75]
[1722211399252,4.3157,185.37,185.25,21.24871957]
[1722211399394,49.316,185.36,185.28,12.75]
[1722211399821,49.316,185.36,185.27,12.75]
[1722211400111,49.316,185.36,185.28,20.0]
[1722211400312,45.0,185.36,185.28,20.0]
[1722211404206,12.75,185.31,185.25,1.24871957]
[1722211404800,12.75,185.3,185.24,16.0608]
[1722211405110,12.75,185.3,185.19,17.30946662]
[1722211405111,12.75,185.29,185.19,16.5277]
[1722211405310,12.75,185.28,185.21,12.75]
[1722211406800,12.75,185.28,185.22,20.0]
[1722211408731,12.75,185.29,185.23,12.75]
[1722211410628,12.75,185.3,185.23,12.75]
[1722211410932,12.75,185.29,185.23,12.75]
[1722211411400,15.9538,185.33,185.25,12.75]
[1722211411609,12.75,185.31,185.24,1.07958388]
[1722211411923,12.75,185.31,185.25,12.75]
[1722211412909,12.75,185.31,185.24,12.75]
[1722211413102,12.75,185.31,185.25,20.0]
[1722211413831,12.75,185.3,185.25,20.0]
[1722211414011,12.75,185.3,185.23,12.75]
[1722211414205,12.75,185.31,185.24,32.75]
[1722211414802,12.75,185.31,185.19,16.5277]
[1722211415104,20.2704,185.33,185.19,16.5277]
[1722211415105,12.75,185.28,185.22,12.75]
[1722211417518,12.75,185.27,185.21,12.75]
[1722211417719,12.75,185.28,185.22,20.0]
[1722211419138,12.75,185.29,185.22,32.75]
[1722211419334,35.9538,185.33,185.23,12.75]
[1722211419639,12.75,185.29,185.23,12.75]
[1722211420821,12.75,185.3,185.24,12.75]
[1722211421023,12.75,185.31,185.24,12.75]
[1722211421448,45.0,185.3,185.24,12.75]
[1722211422444,12.75,185.34,185.27,12.75]
[1722211423135,12.75,185.34,185.28,12.75]
[1722211423519,12.75,185.35,185.28,12.75]
[1722211424014,12.75,185.34,185.28,12.75]
[1722211424214,12.75,185.34,185.27,12.75]
[1722211425327,12.75,185.34,185.25,15.4972]
[1722211425518,4.3162,185.35,185.25,15.4972]
[1722211425519,12.75,185.33,185.27,12.75]
[1722211425718,12.75,185.33,185.26,12.75]
[1722211426121,57.75,185.32,185.26,12.75]
[1722211427825,45.0,185.32,185.26,12.75]
[1722211428132,45.0,185.32,185.26,13.82948823]
[1722211428322,12.75,185.33,185.26,13.82948823]
[1722211428523,12.75,185.33,185.26,12.75]
[1722211429740,12.75,185.34,185.27,12.75]
[1722211429943,4.3159,185.36,185.28,12.75]
[1722211430142,12.75,185.34,185.28,12.75]
[1722211430636,12.75,185.34,185.27,12.75]
[1722211431527,12.75,185.34,185.28,12.75]
[1722211434359,45.0,185.35,185.28,12.75]
[1722211434652,12.75,185.34,185.28,12.75]
[1722211434853,12.75,185.33,185.25,15.4972]
[1722211435023,12.75,185.32,185.26,20.0]
[1722211435229,12.75,185.32,185.26,32.75]
[1722211435430,12.75,185.33,185.27,12.75]
[1722211436032,12.75,185.32,185.26,20.0]
[1722211436327,12.75,185.3,185.23,12.75]
[1722211436526,12.75,185.3,185.24,20.0]
[1722211438437,12.75,185.3,185.21,16.4607]
[1722211438438,12.75,185.29,185.21,16.4607]
[1722211438641,12.75,185.27,185.21,12.75]
[1722211439739,12.75,185.28,185.22,20.0]
[1722211440441,12.75,185.29,185.22,32.75]
[1722211440839,12.75,185.29,185.22,20.0]
[1722211441160,45.0,185.28,185.22,20.0]
[1722211441458,57.75,185.28,185.22,20.0]
[1722211441657,12.75,185.26,185.17,15.6693]
[1722211441962,45.0,185.28,185.18,12.75]
[1722211441963,12.75,185.24,185.18,12.75]
[1722211442265,12.75,185.24,185.17,12.75]
[1722211442461,12.75,185.23,185.17,12.75]
[1722211443131,12.75,185.22,185.16,12.75]
[1722211443336,24.3182,185.26,185.15,12.75]
[1722211443337,12.75,185.21,185.15,12.75]
[1722211443828,12.75,185.21,185.13,15.2822]
[1722211444031,12.75,185.21,185.15,12.75]
[1722211444231,25.4528,185.25,185.12,6.3626]
[1722211444232,12.75,185.19,185.12,6.3626]
[1722211444444,12.75,185.19,185.13,12.75]
[1722211445036,12.75,185.17,185.08,21.5544]
[1722211445356,12.75,185.16,185.1,12.75]
[1722211445731,12.75,185.17,185.11,12.75]
[1722211446148,12.75,185.18,185.11,12.75]
[1722211446347,45.0,185.17,185.12,20.0]
[1722211447970,12.75,185.19,185.12,32.75]
[1722211448143,4.3187,185.24,185.14,12.75]
[1722211448463,12.75,185.22,185.15,12.75]
[1722211448676,12.75,185.22,185.16,12.75]
[1722211449760,45.0,185.21,185.16,12.75]
[1722211450558,0.17,185.23,185.16,12.75]
[1722211450745,12.75,185.23,185.12,20.0]
[1722211451065,12.75,185.2,185.13,12.75]
[1722211451241,12.75,185.2,185.14,20.0]
[1722211451782,0.17,185.22,185.14,32.75]
[1722211451967,12.75,185.21,185.14,32.75]
[1722211452645,12.75,185.21,185.15,12.75]
[1722211452839,57.92,185.22,185.15,12.75]
[1722211453748,28.4683,185.25,185.16,20.0]
[1722211453949,12.75,185.24,185.14,20.0]
[1722211455275,45.0,185.23,185.14,20.0]
[1722211455462,45.0,185.23,185.17,12.75]
[1722211456657,57.75,185.23,185.17,12.75]
[1722211457475,57.75,185.23,185.16,12.75]
[1722211457671,57.75,185.23,185.17,20.0]